[Event "EIWCC 2017"]
[Site "Riga"]
[Date "2017.04.12"]
[Round "2"]
[White "Gueci, Tea"]
[Black "Szczepkowska, Karina"]
[Result "1-0"]
[ECO "C77"]
[WhiteElo "2132"]
[BlackElo "2414"]
[Annotator "ChessBase"]
[PlyCount "145"]
[EventDate "2017.??.??"]
[EventType "swiss"]
[EventCountry "LAT"]
[SourceTitle "playchess.com"]
[Source "ChessBase"]
[SourceQuality "1"]
[TimeControl "40/5400+30:1800+30"]

1. e4 {[%emt 0:00:00]} e5 {[%emt 0:00:04]} 2. Nf3 {[%emt 0:00:00]} Nc6 {[%emt 0:00:06]} 3. Bb5 {[%emt 0:00:00]} a6 {[%emt 0:00:06]} 4. Ba4 {[%emt 0:00:00]} Nf6 {[%emt 0:00:05]} 5. Qe2 {[%emt 0:00:00]} b5 {[%emt 0:01:53]} 6. Bb3 {[%emt 0:00:00]} Be7 {[%emt 0:00:06]} 7. c3 {[%emt 0:00:00]} O-O {[%emt 0:00:05]} 8. O-O {[%emt 0:00:15]} d5 {[%emt 0:00:17]} 9. d3 {[%emt 0:00:16]} Re8 {[%emt 0:00:17]} 10. h3 {[%emt 0:03:38]} h6 {[%emt 0:01:04]} 11. Nbd2 {[%emt 0:01:01]} Bf8 {[%emt 0:05:09]} 12. Re1 {[%emt 0:08:31]} Bb7 {[%emt 0:11:08]} 13. Nf1 {[%emt 0:04:09]} Na5 {[%emt 0:05:52]} 14. Bc2 {[%emt 0:00:44]} c5 {[%emt 0:00:06]} 15. Ng3 {[%emt 0:07:38]} g6 {[%emt 0:07:51]} 16. Bd2 {[%emt 0:10:49]} Nc6 {[%emt 0:10:13]} 17. Nh2 {[%emt 0:07:03]} d4 {[%emt 0:05:32]} 18. Rad1 {[%emt 0:04:47]} dxc3 {[%emt 0:07:03]} 19. bxc3 {[%emt 0:00:23]} Bc8 {[%emt 0:00:15]} 20. Be3 {[%emt 0:11:31]} Be6 {[%emt 0:04:30]} 21. Bb3 {[%emt 0:02:47]} Qe7 {[%emt 0:04:20]} 22. Nf3 {[%emt 0:03:58]} Rad8 {[%emt 0:07:29]} 23. Qb2 {[%emt 0:05:07]} Bc8 {[%emt 0:04:04]} 24. d4 {[%emt 0:05:28]} exd4 {[%emt 0:01:47]} 25. cxd4 {[%emt 0:00:15]} c4 {[%emt 0:00:10]} 26. Bc2 {[%emt 0:01:02]} Bg7 {[%emt 0:03:07]} 27. Qc1 {[%emt 0:05:16]} Kh7 {[%emt 0:02:21]} 28. a3 {[%emt 0:01:27]} Na5 {[%emt 0:02:43]} 29. Bd2 {[%emt 0:03:32]} Qc7 {[%emt 0:01:25]} 30. Bc3 {[%emt 0:02:04]} Nb7 {[%emt 0:02:40]} 31. Qb2 {[%emt 0:01:13]} Nd7 {[%emt 0:00:57]} 32. a4 {[%emt 0:03:19]} bxa4 {[%emt 0:03:08]} 33. Bxa4 {[%emt 0:00:48]} Re6 {[%emt 0:00:10]} 34. Bc2 {[%emt 0:02:06]} Ree8 {[%emt 0:02:19]} 35. Ra1 {[%emt 0:01:47]} Re6 {[%emt 0:03:12]} 36. h4 {[%emt 0:01:31]} Rb6 {[%emt 0:00:45]} 37. Qa2 {[%emt 0:00:23]} Nf8 {[%emt 0:02:08]} 38. h5 {[%emt 0:01:11]} Bg4 {[%emt 0:01:01]} 39. hxg6+ {[%emt 0:00:49]} fxg6 {[%emt 0:01:16]} 40. Nh2 {[%emt 0:00:00]} Be6 {[%emt 0:00:15]} 41. e5 {[%emt 0:04:32]} Bd5 {[%emt 0:04:46]} 42. f4 {[%emt 0:01:58]} Kh8 {[%emt 0:02:01]} 43. f5 {[%emt 0:05:48]} gxf5 {[%emt 0:00:07]} 44. Nxf5 {[%emt 0:00:17]} Ne6 {[%emt 0:01:00]} 45. Ng4 {[%emt 0:01:59]} Nf4 {[%emt 0:03:20]} 46. Nge3 {[%emt 0:00:28]} Be6 {[%emt 0:06:17]} 47. Be4 {[%emt 0:04:07]} Rg8 {[%emt 0:03:21]} 48. g3 {[%emt 0:02:07]} Nh3+ {[%emt 0:03:09]} 49. Kh2 {[%emt 0:01:11]} Ng5 {[%emt 0:00:05]} 50. Bg2 {[%emt 0:00:46]} Qf7 {[%emt 0:01:26]} 51. Rf1 {[%emt 0:01:26]} Qh5+ {[%emt 0:00:30]} 52. Nh4 {[%emt 0:00:57]} Rb3 {[%emt 0:00:41]} 53. Qc2 {[%emt 0:00:43]} Bf8 {[%emt 0:02:38]} 54. d5 {[%emt 0:01:51]} Nc5 {[%emt 0:02:08]} 55. dxe6 {[%emt 0:01:03]} Rxc3 {[%emt 0:02:18]} 56. Qxc3 {[%emt 0:00:30]} Nge4 {[%emt 0:00:08]} 57. Bxe4 {[%emt 0:01:38]} Nxe4 {[%emt 0:00:35]} 58. Qxc4 {[%emt 0:01:44]} Nxg3 {[%emt 0:01:09]} 59. Qf4 {[%emt 0:03:21]} Be7 {[%emt 0:02:06]} 60. Neg2 {[%emt 0:01:52]} Rg4 {[%emt 0:00:48]} 61. Qxg3 {[%emt 0:05:50]} Rxg3 {[%emt 0:00:46]} 62. Kxg3 {[%emt 0:00:01]} Qxe5+ {[%emt 0:00:22]} 63. Nf4 {[%emt 0:00:33]} Kh7 {[%emt 0:02:28]} 64. Nhg6 {[%emt 0:01:12]} Qc3+ {[%emt 0:00:39]} 65. Kg4 {[%emt 0:00:33]} Bd6 {[%emt 0:01:10]} 66. Rad1 {[%emt 0:00:40]} h5+ {[%emt 0:01:19]} 67. Kxh5 {[%emt 0:00:16]} Qc5+ {[%emt 0:00:20]} 68. Rd5 {[%emt 0:00:14]} Qa3 {[%emt 0:00:32]} 69. Kg4 {[%emt 0:00:36]} Kg7 {[%emt 0:00:40]} 70. Rfd1 {[%emt 0:00:35]} Bxf4 {[%emt 0:00:33]} 71. Nxf4 {[%emt 0:00:05]} Qa2 {[%emt 0:00:21]} 72. e7 {[%emt 0:01:13]} Kf7 {[%emt 0:00:40]} 73. Re1 {[%emt 0:00:14]} 1-0

[Event "EIWCC 2017"]
[Site "Riga"]
[Date "2017.04.12"]
[Round "2"]
[White "Tsiganova, Monika"]
[Black "Lazarne Vajda, Szidonia"]
[Result "1/2-1/2"]
[ECO "A48"]
[WhiteElo "2111"]
[BlackElo "2355"]
[Annotator "RC"]
[PlyCount "60"]
[EventDate "2017.??.??"]
[EventType "swiss"]
[EventCountry "LAT"]
[SourceTitle "playchess.com"]
[Source "ChessBase"]
[SourceQuality "1"]
[TimeControl "40/5400+30:1800+30"]

1. d4 {[%emt 0:00:00]} Nf6 {[%emt 0:00:24]} 2. Nf3 {[%emt 0:00:00]} g6 {[%emt 0:01:02]} 3. Bg5 {[%emt 0:01:29]} Bg7 {[%emt 0:02:28]} 4. Nbd2 {[%emt 0:00:47]} d5 {[%emt 0:05:49]} 5. e3 {[%emt 0:00:52]} Nbd7 {[%emt 0:05:07]} 6. Bd3 {[%emt 0:00:56]} c5 {[%emt 0:01:28]} 7. c3 {[%emt 0:02:52]} b6 {[%emt 0:07:39]} 8. Qe2 {[%emt 0:09:27]} Bb7 {[%emt 0:04:14]} 9. dxc5 Nxc5 {[%emt 0:02:07]} 10. Bb5+ {[%emt 0:01:53]} Nfd7 {[%emt 0:06:18]} 11. Nd4 {[%emt 0:09:27]} a6 {[%emt 0:03:07]} 12. Bc6 {[%emt 0:02:35]} Qc7 {[%emt 0:01:36]} 13. Bxb7 {[%emt 0:04:43]} Qxb7 {[%emt 0:04:43]} 14. O-O {[%emt 0:07:41]} b5 {[%emt 0:02:44]} 15. Rad1 {[%emt 0:05:53]} e6 {[%emt 0:11:35]} 16. Rfe1 {[%emt 0:00:30]} h6 17. Bh4 Nb6 {[%emt 0:00:52]} 18. e4 {[%emt 0:08:16]} Nxe4 {[%emt 0:09:17]} 19. Nxe4 {[%emt 0:00:28]} dxe4 {[%emt 0:00:20]} 20. Nxb5 {[%emt 0:11:28]} axb5 {[%emt 0:02:06]} 21. Qxb5+ {[%emt 0:00:18]} Kf8 {[%emt 0:00:22]} 22. Rd8+ {[%emt 0:00:38]} Rxd8 {[%emt 0:00:08]} 23. Bxd8 {[%emt 0:00:12]} Qd5 {[%emt 0:04:57]} 24. Qb4+ {[%emt 0:04:18]} Kg8 {[%emt 0:00:32]} 25. Bxb6 {[%emt 0:00:16]} Qxa2 {[%emt 0:00:37]} 26. h4 {[%emt 0:04:12]} Kh7 {[%emt 0:01:48]} 27. h5 {[%emt 0:02:57]} Rb8 {[%emt 0:02:33]} 28. hxg6+ {[%emt 0:00:08]} fxg6 {[%emt 0:00:09]} 29. Qd6 {[%emt 0:00:45]} Rb7 {[%emt 0:00:20]} 30. Bd4 {[%emt 0:02:30]} Qxb2 {[%emt 0:01:39]} 1/2-1/2

[Event "EIWCC 2017"]
[Site "Riga"]
[Date "2017.04.12"]
[Round "2"]
[White "Baptista, Ana Filipa"]
[Black "Michna, Marta"]
[Result "0-1"]
[ECO "B06"]
[WhiteElo "2071"]
[BlackElo "2389"]
[Annotator "ChessBase"]
[PlyCount "50"]
[EventDate "2017.??.??"]
[EventType "swiss"]
[EventCountry "LAT"]
[SourceTitle "playchess.com"]
[Source "ChessBase"]
[SourceQuality "1"]
[TimeControl "40/5400+30:1800+30"]

1. e4 {[%emt 0:00:00]} g6 {[%emt 0:00:24]} 2. d4 {[%emt 0:01:00]} Bg7 {[%emt 0:00:04]} 3. Nc3 {[%emt 0:02:38]} d6 {[%emt 0:01:51]} 4. Be3 {[%emt 0:01:54]} Nd7 {[%emt 0:01:00]} 5. h4 {[%emt 0:03:14]} Ngf6 {[%emt 0:07:18]} 6. Be2 {[%emt 0:12:55]} h5 {[%emt 0:02:52]} 7. f3 {[%emt 0:02:40]} c6 {[%emt 0:02:30]} 8. Qd2 {[%emt 0:04:29]} b5 {[%emt 0:01:04]} 9. d5 {[%emt 0:08:23]} cxd5 {[%emt 0:09:03]} 10. Bxb5 {[%emt 0:03:20]} dxe4 {[%emt 0:11:52]} 11. Bc6 {[%emt 0:01:57]} Rb8 {[%emt 0:00:13]} 12. Bxa7 {[%emt 0:02:31]} Rxb2 {[%emt 0:01:08]} 13. Na4 {[%emt 0:01:26]} Qc7 {[%emt 0:05:32]} 14. Nxb2 {[%emt 0:21:55]} Qxa7 {[%emt 0:03:00]} 15. Qb4 {[%emt 0:04:41]} O-O {[%emt 0:04:52]} 16. Ne2 {[%emt 0:09:59]} exf3 {[%emt 0:07:23]} 17. Bxf3 {[%emt 0:04:54]} Ne5 {[%emt 0:00:31]} 18. a4 {[%emt 0:05:06]} Nfg4 {[%emt 0:01:01]} 19. O-O-O {[%emt 0:03:52]} Nf2 {[%emt 0:08:00]} 20. Kb1 {[%emt 0:00:38]} Nxh1 {[%emt 0:00:22]} 21. Rxh1 {[%emt 0:00:27]} Nxf3 {[%emt 0:01:44]} 22. gxf3 {[%emt 0:00:04]} Bf5 {[%emt 0:03:32]} 23. Nc3 {[%emt 0:01:50]} Qf2 {[%emt 0:05:15]} 24. Rc1 {[%emt 0:01:26]} Qxf3 {[%emt 0:01:57]} 25. Nd3 {[%emt 0:00:36]} Rc8 {[%emt 0:00:53]} 0-1

[Event "EIWCC 2017"]
[Site "Riga"]
[Date "2017.04.12"]
[Round "2"]
[White "Beydullayeva, Govhar"]
[Black "Pustovoitova, Daria"]
[Result "0-1"]
[ECO "A20"]
[WhiteElo "2054"]
[BlackElo "2411"]
[Annotator "ChessBase"]
[PlyCount "68"]
[EventDate "2017.??.??"]
[EventType "swiss"]
[EventCountry "LAT"]
[SourceTitle "playchess.com"]
[Source "ChessBase"]
[SourceQuality "1"]
[TimeControl "40/5400+30:1800+30"]

1. c4 {[%emt 0:00:00]} e5 {[%emt 0:00:51]} 2. g3 {[%emt 0:00:00]} Nf6 {[%emt 0:00:48]} 3. Bg2 {[%emt 0:00:19]} Nc6 {[%emt 0:00:24]} 4. Nc3 {[%emt 0:00:21]} Bb4 {[%emt 0:00:29]} 5. Nd5 {[%emt 0:00:49]} Nxd5 {[%emt 0:01:40]} 6. cxd5 {[%emt 0:02:00]} Ne7 {[%emt 0:00:07]} 7. a3 {[%emt 0:03:39]} Bc5 {[%emt 0:00:29]} 8. Nf3 {[%emt 0:13:36]} d6 {[%emt 0:03:56]} 9. d4 {[%emt 0:03:01]} exd4 {[%emt 0:00:31]} 10. Nxd4 {[%emt 0:00:05]} O-O {[%emt 0:00:21]} 11. b4 {[%emt 0:02:34]} Bb6 {[%emt 0:01:32]} 12. Bb2 {[%emt 0:02:08]} a5 {[%emt 0:00:32]} 13. O-O {[%emt 0:04:16]} Ng6 {[%emt 0:03:10]} 14. Qc2 {[%emt 0:07:45]} Re8 {[%emt 0:08:52]} 15. e4 {[%emt 0:05:49]} Ne5 {[%emt 0:01:43]} 16. Kh1 {[%emt 0:02:32]} Bd7 {[%emt 0:03:09]} 17. f4 {[%emt 0:12:10]} Ng4 {[%emt 0:00:54]} 18. Rae1 {[%emt 0:02:02]} axb4 {[%emt 0:03:13]} 19. axb4 {[%emt 0:00:30]} Qf6 {[%emt 0:00:56]} 20. Nf5 {[%emt 0:16:42]} Ra2 {[%emt 0:12:49]} 21. Re2 {[%emt 0:06:16]} Bxf5 {[%emt 0:00:57]} 22. exf5 {[%emt 0:01:39]} Qd8 {[%emt 0:07:27]} 23. Rxe8+ {[%emt 0:06:09]} Qxe8 {[%emt 0:00:05]} 24. h3 {[%emt 0:02:33]} Ne3 {[%emt 0:04:53]} 25. Re1 {[%emt 0:00:42]} Qa8 {[%emt 0:09:01]} 26. Qc3 {[%emt 0:01:32]} f6 {[%emt 0:04:51]} 27. Be4 {[%emt 0:00:38]} Qe8 {[%emt 0:00:41]} 28. Bg2 {[%emt 0:01:24]} Qa4 {[%emt 0:01:49]} 29. Be4 {[%emt 0:00:43]} Nd1 {[%emt 0:01:08]} 30. Qd2 {[%emt 0:01:48]} Nf2+ {[%emt 0:03:17]} 31. Kg2 {[%emt 0:00:37]} Qb3 {[%emt 0:00:39]} 32. Bf3 {[%emt 0:00:51]} Rxb2 {[%emt 0:01:11]} 33. Re8+ {[%emt 0:00:23]} Kf7 {[%emt 0:00:01]} 34. Bh5+ {[%emt 0:00:08]} g6 {[%emt 0:00:02]} 0-1

[Event "EIWCC 2017"]
[Site "Riga"]
[Date "2017.04.12"]
[Round "2"]
[White "Ozbay, Ece"]
[Black "Arabidze, Meri"]
[Result "0-1"]
[ECO "B43"]
[WhiteElo "2035"]
[BlackElo "2373"]
[Annotator "ChessBase"]
[PlyCount "104"]
[EventDate "2017.??.??"]
[EventType "swiss"]
[EventCountry "LAT"]
[SourceTitle "playchess.com"]
[Source "ChessBase"]
[SourceQuality "1"]
[TimeControl "40/5400+30:1800+30"]

1. e4 {[%emt 0:00:00]} c5 {[%emt 0:00:06]} 2. Nf3 {[%emt 0:00:00]} e6 {[%emt 0:00:04]} 3. d4 {[%emt 0:00:00]} cxd4 {[%emt 0:00:05]} 4. Nxd4 {[%emt 0:00:00]} a6 {[%emt 0:00:02]} 5. Nc3 {[%emt 0:00:14]} Qc7 {[%emt 0:00:07]} 6. Be2 {[%emt 0:00:05]} Nf6 {[%emt 0:00:21]} 7. O-O {[%emt 0:00:24]} Be7 {[%emt 0:00:16]} 8. a4 {[%emt 0:01:42]} O-O {[%emt 0:01:30]} 9. Be3 {[%emt 0:03:09]} d6 {[%emt 0:01:42]} 10. a5 {[%emt 0:02:02]} Nbd7 {[%emt 0:03:33]} 11. Nb3 {[%emt 0:03:48]} Rd8 {[%emt 0:10:41]} 12. f4 {[%emt 0:07:34]} b5 {[%emt 0:12:54]} 13. axb6 {[%emt 0:05:22]} Nxb6 {[%emt 0:00:05]} 14. Qd4 {[%emt 0:00:34]} Nfd7 {[%emt 0:04:40]} 15. e5 {[%emt 0:13:26]} Bb7 {[%emt 0:09:13]} 16. Rad1 {[%emt 0:12:52]} Nc8 {[%emt 0:09:59]} 17. exd6 {[%emt 0:05:31]} Nxd6 {[%emt 0:01:49]} 18. Bd3 {[%emt 0:09:14]} g6 {[%emt 0:04:52]} 19. Na4 {[%emt 0:11:15]} Bf6 {[%emt 0:05:54]} 20. Qb4 {[%emt 0:00:24]} a5 {[%emt 0:00:20]} 21. Qa3 {[%emt 0:03:36]} Nc4 {[%emt 0:06:49]} 22. Bxc4 {[%emt 0:02:21]} Qxc4 {[%emt 0:00:07]} 23. Rf2 {[%emt 0:15:16]} Nc5 {[%emt 0:10:42]} 24. Nd2 {[%emt 0:02:26]} Qxa4 {[%emt 0:06:11]} 25. Qxc5 {[%emt 0:00:40]} Rdc8 {[%emt 0:01:38]} 26. Qb6 {[%emt 0:00:26]} Qxc2 {[%emt 0:00:48]} 27. Re1 {[%emt 0:00:25]} Qc7 {[%emt 0:03:03]} 28. Qxc7 {[%emt 0:00:41]} Rxc7 {[%emt 0:00:01]} 29. b3 {[%emt 0:00:01]} Bd5 {[%emt 0:00:44]} 30. Rb1 {[%emt 0:00:48]} Rc3 {[%emt 0:01:00]} 31. Re2 {[%emt 0:00:42]} Rb8 {[%emt 0:00:40]} 32. Bf2 {[%emt 0:00:22]} h5 {[%emt 0:01:51]} 33. Ra1 {[%emt 0:00:32]} Rb5 {[%emt 0:00:52]} 34. Be1 {[%emt 0:00:30]} Rc2 {[%emt 0:01:00]} 35. Ra3 {[%emt 0:00:28]} Be7 {[%emt 0:01:02]} 36. Ra1 {[%emt 0:00:31]} Bxb3 {[%emt 0:01:17]} 37. Re4 {[%emt 0:00:35]} Bd5 {[%emt 0:01:01]} 38. Rea4 {[%emt 0:00:29]} Bc5+ {[%emt 0:00:55]} 39. Kh1 {[%emt 0:00:34]} Bb4 {[%emt 0:00:21]} 40. Nf3 {[%emt 0:00:00]} Bxf3 {[%emt 0:01:06]} 41. gxf3 {[%emt 0:00:27]} Bxe1 {[%emt 0:00:34]} 42. Rxe1 {[%emt 0:00:02]} Rbb2 {[%emt 0:00:13]} 43. Rxa5 {[%emt 0:00:24]} Rxh2+ {[%emt 0:00:09]} 44. Kg1 {[%emt 0:00:03]} Rbg2+ {[%emt 0:00:14]} 45. Kf1 {[%emt 0:00:04]} h4 {[%emt 0:01:39]} 46. Rg5 {[%emt 0:06:25]} Rxg5 {[%emt 0:00:34]} 47. fxg5 {[%emt 0:00:07]} Rh1+ {[%emt 0:00:06]} 48. Kf2 {[%emt 0:00:09]} Rxe1 {[%emt 0:00:13]} 49. Kxe1 {[%emt 0:00:02]} f6 {[%emt 0:00:21]} 50. gxf6 {[%emt 0:01:30]} Kf7 {[%emt 0:00:26]} 51. Kf2 {[%emt 0:00:06]} Kxf6 {[%emt 0:00:06]} 52. Kg2 {[%emt 0:00:03]} Kf5 {[%emt 0:00:11]} 0-1

[Event "EIWCC 2017"]
[Site "Riga"]
[Date "2017.04.13"]
[Round "3"]
[White "Kashlinskaya, Alina"]
[Black "Kazarian, Anna-Maja"]
[Result "1-0"]
[ECO "D10"]
[WhiteElo "2426"]
[BlackElo "2257"]
[Annotator "TA"]
[PlyCount "63"]
[EventDate "2017.??.??"]
[EventType "swiss"]
[EventCountry "LAT"]
[SourceTitle "playchess.com"]
[Source "ChessBase"]
[SourceQuality "1"]
[TimeControl "40/5400+30:1800+30"]

1. d4 {[%emt 0:00:00]} d5 {[%emt 0:00:07]} 2. c4 {[%emt 0:00:00]} c6 {[%emt 0:00:05]} 3. cxd5 {[%emt 0:00:00]} cxd5 {[%emt 0:00:05]} 4. Bg5 {[%emt 0:00:00] D10: Slav Defence: 3 cxd5 (without early Nf3) and 3 Nc3} (4. Nc3 Nf6 5. Bf4 Nc6 6. e3 a6 7. Be2 e6 8. Nf3 Be7 9. h3 O-O 10. Rc1 Bd7 11. O-O Rc8 12. Bd3 b5 13. a4 b4 14. Nb1 Na5 15. Rxc8 Qxc8 {0-1 (37) Vallejo Pons,F (2711)-Carlsen,M (2840) Doha 2016}) 4... h6 {[%emt 0:05:49]} 5. Bh4 {[%emt 0:00:00]} Qa5+ $146 {[%emt 0:01:15]} (5... Qb6 6. Nc3 e6 7. Qd2 Ne7 8. f3 Nbc6 9. Rd1 Nf5 10. Bf2 Bb4 11. e4 Nfe7 {1-0 (54) Artemiev,V (2653)-Dreev,A (2652) Moscow 2016}) 6. Nc3 {[%emt 0:01:02]} e6 {[%emt 0:03:31]} 7. a3 {[%emt 0:05:05]} Nc6 {[%emt 0:08:40]} 8. e3 {[%emt 0:01:21]} Bd7 {[%emt 0:03:00]} 9. Bd3 {[%emt 0:02:03]} Qb6 {[%emt 0:08:48]} 10. Nf3 {[%emt 0:02:56]} Bd6 {[%emt 0:11:22]} 11. O-O {[%emt 0:03:29]} Nf6 {[%emt 0:11:24]} 12. b4 {[%emt 0:08:43]} a5 {[%emt 0:08:18]} 13. Na4 {[%emt 0:07:46]} Qa7 {[%emt 0:02:34] [#]} 14. b5 $1 {[%emt 0:04:12]} Ne7 {[%emt 0:00:08]} 15. Ne5 {[%emt 0:01:25]} b6 {[%emt 0:05:49]} 16. Qf3 {[%emt 0:05:12]} Bxe5 {[%emt 0:02:56]} 17. dxe5 {[%emt 0:00:16]} Ne4 {[%emt 0:00:25]} 18. Bxe7 {[%emt 0:03:24]} Kxe7 {[%emt 0:01:03]} 19. Bxe4 {[%emt 0:10:55]} ({Better is} 19. Qg4 $16) 19... dxe4 {[%emt 0:00:48]} 20. Qe2 {[%emt 0:01:39]} Rac8 {[%emt 0:05:03]} 21. Rfd1 $18 {[%emt 0:01:44]} Qc7 {[%emt 0:02:10]} 22. Qb2 {[%emt 0:03:34]} Qc2 {[%emt 0:08:29]} 23. Qd4 {[%emt 0:02:16]} Rhd8 {[%emt 0:00:11]} 24. Nxb6 {[%emt 0:00:52]} Rc3 {[%emt 0:02:32]} 25. Rd2 {[%emt 0:09:13]} Qb3 {[%emt 0:04:43]} 26. Qd6+ {[%emt 0:01:16]} Ke8 {[%emt 0:00:03]} 27. Nxd7 {[%emt 0:00:20]} Rd3 {[%emt 0:01:15]} 28. Qf8+ {[%emt 0:01:50]} Kxd7 {[%emt 0:00:05]} 29. Qxf7+ {[%emt 0:00:24]} Kc8 {[%emt 0:00:05]} 30. Rc1+ {[%emt 0:00:29]} Kb8 {[%emt 0:00:43]} 31. Qc7+ {[%emt 0:00:22]} Ka8 {[%emt 0:00:04]} 32. b6 {[%emt 0:01:07]} 1-0

[Event "EIWCC 2017"]
[Site "Riga"]
[Date "2017.04.13"]
[Round "3"]
[White "Skripchenko, Almira"]
[Black "Ivanenko, Olga I"]
[Result "1/2-1/2"]
[ECO "B23"]
[WhiteElo "2420"]
[BlackElo "2252"]
[Annotator "TA"]
[PlyCount "103"]
[EventDate "2017.??.??"]
[EventType "swiss"]
[EventCountry "LAT"]
[SourceTitle "playchess.com"]
[Source "ChessBase"]
[SourceQuality "1"]
[TimeControl "40/5400+30:1800+30"]

1. e4 {[%emt 0:00:00]} c5 {[%emt 0:00:07]} 2. Nc3 {[%emt 0:00:18]} a6 {[%emt 0:00:14]} 3. g3 {[%emt 0:01:14]} b5 {[%emt 0:00:14]} 4. Bg2 {[%emt 0:00:06]} Bb7 {[%emt 0:00:06]} 5. d3 {[%emt 0:00:18]} e6 {[%emt 0:00:10]} 6. Nh3 {[%emt 0:00:06]} Nf6 {[%emt 0:09:03]} 7. O-O {[%emt 0:00:10]} d5 {[%emt 0:00:48]} 8. e5 {[%emt 0:13:10]} Nfd7 {[%emt 0:00:16]} 9. f4 {[%emt 0:00:10]} Be7 {[%emt 0:20:37]} 10. f5 {[%emt 0:07:28]} Nxe5 {[%emt 0:07:48]} 11. fxe6 {[%emt 0:01:54]} fxe6 {[%emt 0:02:25]} 12. Qh5+ {[%emt 0:01:55]} Ng6 {[%emt 0:00:05]} 13. Ng5 {[%emt 0:09:55]} Bxg5 {[%emt 0:03:26]} 14. Bxg5 {[%emt 0:00:17]} Qd6 {[%emt 0:04:18]} 15. Rae1 {[%emt 0:01:18]} Nd7 {[%emt 0:19:35]} 16. a3 {[%emt 0:17:18]} e5 {[%emt 0:15:28]} 17. Rf5 {[%emt 0:05:57]} Rf8 {[%emt 0:01:19]} 18. Rxf8+ {[%emt 0:05:26]} Ndxf8 {[%emt 0:02:10]} 19. Bf4 {[%emt 0:00:26]} O-O-O {[%emt 0:04:12]} 20. Bxe5 {[%emt 0:00:36]} Nxe5 {[%emt 0:00:19]} 21. Qxe5 {[%emt 0:01:01]} Qxe5 {[%emt 0:07:10]} 22. Rxe5 {[%emt 0:00:05]} Ng6 {[%emt 0:00:37]} 23. Rh5 {[%emt 0:00:08]} Re8 {[%emt 0:00:56]} 24. Bxd5 {[%emt 0:10:33]} Re1+ {[%emt 0:00:23]} 25. Kf2 {[%emt 0:00:05]} Rc1 {[%emt 0:00:18]} 26. Bb3 {[%emt 0:00:53]} c4 {[%emt 0:00:41]} 27. dxc4 {[%emt 0:00:05]} bxc4 {[%emt 0:00:08]} 28. Rc5+ {[%emt 0:01:36]} Kd7 {[%emt 0:00:25]} 29. Rxc4 {[%emt 0:00:05]} Rh1 {[%emt 0:00:16]} 30. h4 {[%emt 0:01:32]} Rh2+ {[%emt 0:00:11]} 31. Ke3 {[%emt 0:00:14]} Rg2 {[%emt 0:00:43]} 32. Rg4 {[%emt 0:00:42]} Kd6 {[%emt 0:01:17]} 33. h5 {[%emt 0:00:30]} Ne7 {[%emt 0:00:18]} 34. Ne4+ {[%emt 0:01:10]} Ke5 {[%emt 0:00:34]} 35. Kd3 {[%emt 0:07:09]} Nf5 {[%emt 0:00:36]} 36. Bc4 {[%emt 0:08:09]} h6 {[%emt 0:00:38]} 37. b4 {[%emt 0:00:34]} Rg1 {[%emt 0:00:14]} 38. c3 {[%emt 0:02:48]} Re1 {[%emt 0:00:49]} 39. Nf2 {[%emt 0:03:21]} Re3+ {[%emt 0:00:19]} 40. Kd2 {[%emt 0:00:00]} Rxg3 {[%emt 0:00:34]} 41. Nd3+ {[%emt 0:11:03]} Kd6 {[%emt 0:02:41]} 42. Rf4 {[%emt 0:06:19]} Rg2+ {[%emt 0:01:11]} 43. Kc1 {[%emt 0:00:13]} Ne3 {[%emt 0:09:13]} 44. Rd4+ {[%emt 0:01:44]} Kc7 {[%emt 0:00:10]} 45. Nc5 {[%emt 0:02:11]} Rc2+ {[%emt 0:07:38]} 46. Kb1 {[%emt 0:00:21]} Rxc3 {[%emt 0:00:19]} 47. Rd7+ {[%emt 0:00:21]} Kc6 {[%emt 0:00:07]} 48. Rxb7 {[%emt 0:07:51]} Nxc4 {[%emt 0:00:40]} 49. Rxg7 {[%emt 0:00:16]} Nxa3+ {[%emt 0:01:34]} 50. Kb2 {[%emt 0:00:31]} Rh3 {[%emt 0:00:05]} 51. Rg6+ {[%emt 0:01:53]} Kb5 {[%emt 0:00:14]} 52. Rxh6 {[%emt 0:02:48]} 1/2-1/2

[Event "EIWCC 2017"]
[Site "Riga"]
[Date "2017.04.13"]
[Round "3"]
[White "Szczepkowska, Karina"]
[Black "Baptista, Ana Filipa"]
[Result "1-0"]
[ECO "E12"]
[WhiteElo "2414"]
[BlackElo "2071"]
[Annotator "NA"]
[PlyCount "45"]
[EventDate "2017.??.??"]
[EventType "swiss"]
[EventCountry "LAT"]
[SourceTitle "playchess.com"]
[Source "ChessBase"]
[SourceQuality "1"]
[TimeControl "40/5400+30:1800+30"]

1. d4 {[%emt 0:00:00]} Nf6 {[%emt 0:00:11]} 2. c4 {[%emt 0:00:00]} e6 {[%emt 0:00:19]} 3. Nf3 {[%emt 0:00:02]} b6 {[%emt 0:00:20]} 4. a3 {[%emt 0:00:06]} Bb7 {[%emt 0:00:33]} 5. Nc3 {[%emt 0:00:20]} d5 {[%emt 0:00:38]} 6. Bg5 {[%emt 0:00:12]} Be7 {[%emt 0:02:14]} 7. Qa4+ {[%emt 0:00:06]} c6 {[%emt 0:01:26]} 8. Bxf6 {[%emt 0:04:38]} Bxf6 {[%emt 0:02:08]} 9. cxd5 {[%emt 0:00:12]} exd5 {[%emt 0:00:36]} 10. g3 {[%emt 0:01:39]} O-O {[%emt 0:04:24]} 11. Bg2 {[%emt 0:00:34]} Re8 {[%emt 0:10:29]} 12. O-O {[%emt 0:01:11]} g6 {[%emt 0:06:09]} 13. Rfe1 {[%emt 0:04:48]} Bg7 {[%emt 0:03:09]} 14. e4 {[%emt 0:03:28]} dxe4 {[%emt 0:09:08]} 15. Nxe4 {[%emt 0:01:05]} Na6 {[%emt 0:01:19]} 16. Rad1 {[%emt 0:06:44]} Qb8 {[%emt 0:03:13]} (16... Nc7 $11) 17. h4 {[%emt 0:14:39]} h6 {[%emt 0:08:16]} 18. Qc4 {[%emt 0:05:31]} Qc7 $16 {[%emt 0:05:54]} 19. Ne5 {[%emt 0:11:54]} Rad8 {[%emt 0:21:49]} 20. Nxg6 {[%emt 0:10:49]} b5 {[%emt 0:01:16]} 21. Qb3 {[%emt 0:01:29]} Bc8 {[%emt 0:01:29]} 22. Nf4 {[%emt 0:02:57]} Rxd4 {[%emt 0:02:30]} 23. Nf6+ {[%emt 0:03:40]} 1-0